[Event "45th FIDE Womens Olympiad 2024"]
[Site "Budapest"]
[Date "2024.09.14"]
[Round "4.90"]
[White "Koskela, Niina"]
[Black "Rovira Contreras, Tairu Manuela"]
[Result "1-0"]
[ECO "C54"]
[WhiteElo "2173"]
[BlackElo "2022"]
[Annotator "ChessBase"]
[PlyCount "137"]
[EventDate "2024.09.05"]
[EventType "team-tourn"]
[EventCountry "HUN"]
[SourceTitle "playchess.com"]
[Source "ChessBase"]
[SourceQuality "1"]
[WhiteTeam "Norway"]
[BlackTeam "Venezuela"]
[WhiteTeamCountry "NOR"]
[BlackTeamCountry "VEN"]
[TimeControl "40/5400+30:1800+30"]

1. e4 e5 2. Nf3 Nc6 3. Bc4 Nf6 4. d3 Bc5 5. c3 d6 6. Bb3 Bb6 7. O-O O-O 8. Nbd2 Ne7 9. Nc4 Ng6 10. Nxb6 axb6 11. Bc2 Re8 12. h3 h6 13. Kh2 Bd7 14. Ng1 Bc6 15. Ne2 d5 16. f3 Nh5 17. Be3 Qd6 18. g3 Rad8 19. Qe1 Nf6 20. Rd1 Bd7 21. a3 Qe6 22. Ng1 c5 23. Qf2 Bb5 24. Rfe1 Bc6 25. Bb1 Ba4 26. Rc1 Rd7 27. Ba2 Qe7 28. Bb1 Bc6 29. Qg2 Qd8 30. Ne2 Qb8 31. Kg1 Kh8 32. Bf2 Qd6 33. g4 Nh7 34. h4 Qf6 35. Qg3 Rdd8 36. Kh2 d4 37. cxd4 cxd4 38. Kg2 Kg8 39. h5 Nf4+ 40. Nxf4 exf4 41. Qh2 Qe5 42. Qg1 Rd6 43. Red1 Nf8 44. Ba2 Red8 45. Qe1 g6 46. hxg6 Rxg6 47. Kf1 h5 48. gxh5 Qxh5 49. Ke2 Ne6 50. Qh1 Qb5 51. Rd2 Kg7 52. Bxe6 fxe6 53. Rg1 e5 54. b4 Rdd6 55. Rxg6+ Rxg6 56. Qh4 Kf7 57. Qh7+ Rg7 58. Qf5+ Kg8 59. a4 Qxa4 60. Qxe5 Qxb4 61. Qxf4 b5 62. Ra2 Kh7 63. Qh4+ Kg6 64. Qg4+ Kh6 65. Qh3+ Kg6 66. Qf5+ Kh6 67. Be1 Qe7 68. Bd2+ Rg5 69. Ra1 1-0

[Event "45th FIDE Womens Olympiad 2024"]
[Site "Budapest"]
[Date "2024.09.14"]
[Round "4.91"]
[White "Otazo Sanchez, Annyd Gabriela"]
[Black "Stanford, Sheila Barth"]
[Result "0-1"]
[ECO "B22"]
[WhiteElo "1976"]
[BlackElo "2175"]
[Annotator "ChessBase"]
[PlyCount "186"]
[EventDate "2024.09.05"]
[EventType "team-tourn"]
[EventCountry "HUN"]
[SourceTitle "playchess.com"]
[Source "ChessBase"]
[SourceQuality "1"]
[WhiteTeam "Venezuela"]
[BlackTeam "Norway"]
[WhiteTeamCountry "VEN"]
[BlackTeamCountry "NOR"]
[TimeControl "40/5400+30:1800+30"]

1. e4 c5 2. c3 d5 3. exd5 Nf6 4. Bb5+ Nbd7 5. c4 a6 6. Ba4 b5 7. cxb5 Nxd5 8. Nc3 N5b6 9. Nge2 e6 10. O-O Bd6 11. d4 Nxa4 12. Qxa4 O-O 13. Rd1 Qc7 14. h3 Bb7 15. dxc5 Nxc5 16. Qg4 f5 17. Qc4 axb5 18. Nxb5 Qc6 19. f3 Be5 20. Be3 Na6 21. Qxc6 Bxc6 22. Nbc3 Rfb8 23. Bd4 Bc7 24. b3 Be8 25. Rac1 e5 26. Bf2 Nb4 27. a4 Bd8 28. Bc5 Bg5 29. Rb1 Bf6 30. Bxb4 Rxb4 31. Nd5 Rb7 32. Nxf6+ gxf6 33. Nc3 Rab8 34. Nd5 Kf7 35. a5 Rxb3 36. Rxb3 Rxb3 37. a6 Ra3 38. Nc7 Ke7 39. h4 h5 40. Nd5+ Ke6 41. Nc7+ Ke7 42. Kf2 Bd7 43. Nd5+ Ke6 44. Rd2 Ra5 45. Nc7+ Ke7 46. Rd5 Ra2+ 47. Ke3 Bc8 48. Rd2 Ra3+ 49. Rd3 f4+ 50. Kd2 Ra2+ 51. Kc3 Bxa6 52. Nxa6 Rxa6 53. Rd2 Ra1 54. Kd3 Ke6 55. Rb2 Kf5 56. Ke2 Ra8 57. Kf2 Kg6 58. Rc2 Re8 59. Ra2 Re6 60. Rb2 f5 61. Rb5 Kf6 62. Ra5 Rb6 63. Ra4 Ke6 64. Ra8 e4 65. fxe4 fxe4 66. Ra5 Rb2+ 67. Kf1 Rb1+ 68. Kf2 e3+ 69. Ke2 Rg1 70. Rg5 Kf6 71. Kf3 Rf1+ 72. Ke2 Rf2+ 73. Ke1 Ke6 74. Kd1 Rd2+ 75. Ke1 Rd5 76. Rg8 Kf5 77. Ke2 Ke4 78. Re8+ Re5 79. Ra8 Rb5 80. Re8+ Re5 81. Ra8 Re7 82. Rg8 Re6 83. Rg7 Re8 84. Ra7 Rg8 85. Ra4+ Kf5 86. Ra5+ Kg4 87. Ra4 Rb8 88. Ra2 Rb1 89. Rc2 Kxh4 90. Kf3 Rf1+ 91. Ke4 Rf2 92. Rc1 e2 93. Re1 Kg3 0-1

[Event "45th FIDE Womens Olympiad 2024"]
[Site "Budapest"]
[Date "2024.09.14"]
[Round "4.92"]
[White "Ni, Viktorija"]
[Black "Pena Gonzalez, Clara Isabel"]
[Result "1/2-1/2"]
[ECO "A45"]
[WhiteElo "2163"]
[BlackElo "1895"]
[Annotator "ChessBase"]
[PlyCount "92"]
[EventDate "2024.09.05"]
[EventType "team-tourn"]
[EventCountry "HUN"]
[SourceTitle "playchess.com"]
[Source "ChessBase"]
[SourceQuality "1"]
[WhiteTeam "Norway"]
[BlackTeam "Venezuela"]
[WhiteTeamCountry "NOR"]
[BlackTeamCountry "VEN"]
[TimeControl "40/5400+30:1800+30"]

1. d4 Nf6 2. Bg5 Ne4 3. Bf4 d5 4. e3 c5 5. dxc5 Nc6 6. Nf3 g6 7. Nbd2 Nxc5 8. Nb3 Nxb3 9. axb3 Bg7 10. c3 h6 11. b4 e5 12. Bg3 Bg4 13. Be2 e4 14. Nd4 Bxe2 15. Nxc6 bxc6 16. Qxe2 a5 17. b5 Qb6 18. bxc6 Qxc6 19. O-O O-O 20. Ra3 f5 21. Rfa1 a4 22. Qd1 g5 23. f4 Qc5 24. Qd2 Qc4 25. fxg5 hxg5 26. Bd6 Rf7 27. Bb4 f4 28. b3 Qb5 29. bxa4 Qc4 30. Rd1 f3 31. Qf2 Ra6 32. Qf1 f2+ 33. Kh1 Raf6 34. a5 Qc7 35. Rxd5 Rh6 36. h3 g4 37. Rg5 gxh3 38. g3 Qd8 39. Rg4 Qd1 40. Qxd1 f1=Q+ 41. Qxf1 Rxf1+ 42. Kh2 Rf2+ 43. Kh1 Rf1+ 44. Kh2 Rf2+ 45. Kh1 Rf1+ 46. Kh2 Rf2+ 1/2-1/2

[Event "45th FIDE Womens Olympiad 2024"]
[Site "Budapest"]
[Date "2024.09.14"]
[Round "4.93"]
[White "Gomez Barrera, Javiera Belen"]
[Black "Rogule, Laura"]
[Result "0-1"]
[ECO "A31"]
[WhiteElo "2123"]
[BlackElo "2248"]
[Annotator "ChessBase"]
[PlyCount "76"]
[EventDate "2024.09.05"]
[EventType "team-tourn"]
[EventCountry "HUN"]
[SourceTitle "playchess.com"]
[Source "ChessBase"]
[SourceQuality "1"]
[WhiteTeam "Chile"]
[BlackTeam "Latvia"]
[WhiteTeamCountry "CHI"]
[BlackTeamCountry "LAT"]
[TimeControl "40/5400+30:1800+30"]

1. e4 c5 2. Nf3 a6 3. c4 b6 4. Nc3 Bb7 5. d4 cxd4 6. Nxd4 e6 7. Be3 Qc7 8. Rc1 Nf6 9. f3 d6 10. Qd2 Nbd7 11. Be2 Be7 12. O-O O-O 13. Rfd1 Rfe8 14. a3 Rac8 15. b4 Qb8 16. Nb3 Bf8 17. Bf1 Ne5 18. Na4 Nfd7 19. Nxb6 Nxb6 20. Bxb6 Bxe4 21. Qe3 Bc6 22. c5 Ba4 23. Na5 dxc5 24. bxc5 Bxd1 25. Rxd1 Nc6 26. Nb3 Qb7 27. a4 Nb4 28. Qe4 Nd5 29. Kh1 Bxc5 30. Bxc5 Qxb3 31. Rc1 Qb7 32. Rb1 Qc6 33. Bd4 Qxa4 34. Bd3 g6 35. Qe5 f6 36. Qe4 Nc3 37. Qg4 Nxb1 38. Bxg6 Rc1+ 0-1

[Event "45th FIDE Womens Olympiad 2024"]
[Site "Budapest"]
[Date "2024.09.14"]
[Round "4.94"]
[White "Berzina, Ilze"]
[Black "Abarca Gonzalez, Damaris"]
[Result "0-1"]
[ECO "C95"]
[WhiteElo "2200"]
[BlackElo "1991"]
[Annotator "ChessBase"]
[PlyCount "174"]
[EventDate "2024.09.05"]
[EventType "team-tourn"]
[EventCountry "HUN"]
[SourceTitle "playchess.com"]
[Source "ChessBase"]
[SourceQuality "1"]
[WhiteTeam "Latvia"]
[BlackTeam "Chile"]
[WhiteTeamCountry "LAT"]
[BlackTeamCountry "CHI"]
[TimeControl "40/5400+30:1800+30"]

1. e4 e5 2. Nf3 Nc6 3. Bb5 a6 4. Ba4 Nf6 5. O-O Be7 6. Re1 b5 7. Bb3 d6 8. c3 O-O 9. h3 Nb8 10. d4 Nbd7 11. Nbd2 Bb7 12. Bc2 Re8 13. Nf1 Bf8 14. Ng3 g6 15. a4 c5 16. d5 c4 17. Bg5 Be7 18. Be3 Qc7 19. Nd2 Nc5 20. Qe2 Nfd7 21. Ngf1 Reb8 22. Nh2 Kg7 23. Ng4 h5 24. Nh2 Qd8 25. Nhf3 Qc7 26. Rf1 Nb6 27. a5 Nbd7 28. Ng5 f6 29. Ngf3 Rh8 30. Nh2 Raf8 31. f4 exf4 32. Bxf4 Ne5 33. Be3 Bc8 34. Nhf3 Bd7 35. Nd4 Rf7 36. N2f3 Qc8 37. Rad1 Bd8 38. Nxe5 dxe5 39. Nc6 Bxc6 40. Bxc5 Bd7 41. Bb4 h4 42. Qf2 Rh5 43. Qe3 g5 44. Rd2 g4 45. Bd1 Rg5 46. Bxg4 Bxg4 47. hxg4 Rxg4 48. Rf5 Rg3 49. Qf2 Kg8 50. Qe2 Qd7 51. Kh2 Rfg7 52. Rh5 R3g4 53. Qe3 Rf4 54. Qc5 Rf7 55. Qc6 Rxe4 56. Qe6 Rf4 57. Kh3 Kg7 58. Rxh4 Rxh4+ 59. Kxh4 f5+ 60. Kh5 Bf6 61. Rf2 f4 62. g4 Qxe6 63. dxe6 Rb7 64. g5 Be7 65. Rd2 Bxb4 66. cxb4 Re7 67. Rd7 Kf8 68. Rxe7 Kxe7 69. g6 f3 70. g7 f2 71. g8=Q f1=Q 72. Qh7+ Kxe6 73. Qg6+ Qf6 74. Qe8+ Kf5 75. Qc8+ Ke4 76. Qg4+ Qf4 77. Qe2+ Qe3 78. Qg4+ Qf4 79. Qe2+ Kd5 80. Qg2+ e4 81. Qg8+ Kd4 82. Qd8+ Ke3 83. Qb6+ Kf3 84. Qxa6 e3 85. Qb7+ Kf2 86. a6 e2 87. a7 e1=Q 0-1

[Event "45th FIDE Womens Olympiad 2024"]
[Site "Budapest"]
[Date "2024.09.14"]
[Round "4.95"]
[White "Jorquera Cabello, Valentina"]
[Black "Ter-Avetisjana, Agnesa Stepania"]
[Result "0-1"]
[ECO "B10"]
[WhiteElo "1919"]
[BlackElo "2134"]
[Annotator "ChessBase"]
[PlyCount "148"]
[EventDate "2024.09.05"]
[EventType "team-tourn"]
[EventCountry "HUN"]
[SourceTitle "playchess.com"]
[Source "ChessBase"]
[SourceQuality "1"]
[WhiteTeam "Chile"]
[BlackTeam "Latvia"]
[WhiteTeamCountry "CHI"]
[BlackTeamCountry "LAT"]
[TimeControl "40/5400+30:1800+30"]

1. e4 c6 2. Nf3 d5 3. exd5 cxd5 4. Ne5 a6 5. d4 Nc6 6. c3 Bf5 7. Bd3 Bxd3 8. Qxd3 Nxe5 9. dxe5 e6 10. O-O Qc7 11. Qe2 Ne7 12. Nd2 Nc6 13. Nf3 Be7 14. Re1 h6 15. Bd2 O-O 16. h3 Rac8 17. Nh2 Rfe8 18. Rad1 b5 19. Bf4 Bf8 20. Rd3 Ne7 21. Ng4 Nf5 22. Nh2 Qc4 23. Bd2 b4 24. g4 bxc3 25. bxc3 Nh4 26. g5 h5 27. Rd4 Qxe2 28. Rxe2 Nf5 29. Ra4 Rc6 30. Nf3 Rb8 31. Kg2 Rb2 32. Kf1 g6 33. Ne1 Rb1 34. Kg2 Be7 35. Nd3 Kf8 36. h4 Ke8 37. Re1 Rbb6 38. Rd1 Rc4 39. Rxc4 dxc4 40. Nb4 Nxh4+ 41. Kh3 Nf5 42. a4 a5 43. Nc2 Bc5 44. f4 Rb2 45. Ne1 Ne7 46. Nf3 Nd5 47. f5 Rb3 48. fxg6 fxg6 49. Kh2 Kf7 50. Nh4 Kg7 51. Be1 Be3 52. Ng2 Rb2 53. Kg3 Bxg5 54. Rd4 Kh6 55. Kf3 Ra2 56. Bh4 Bxh4 57. Nxh4 g5 58. Nf5+ exf5 59. Rxd5 g4+ 60. Ke3 g3 61. e6 g2 62. Rd1 Kg6 63. Kf4 Rf2+ 64. Ke5 Rf1 65. Rd8 Re1+ 66. Kd6 Rd1+ 67. Ke7 Rxd8 68. Kxd8 g1=Q 69. e7 Qb6+ 70. Kd7 Qb7+ 71. Kd8 Qxe7+ 72. Kxe7 f4 73. Kd6 f3 74. Kc5 f2 0-1

[Event "45th FIDE Womens Olympiad 2024"]
[Site "Budapest"]
[Date "2024.09.14"]
[Round "4.96"]
[White "Vidruska, Renate"]
[Black "Romero Troncoso, Liset Anais"]
[Result "1/2-1/2"]
[ECO "C43"]
[WhiteElo "2035"]
[BlackElo "1834"]
[Annotator "NA"]
[PlyCount "117"]
[EventDate "2024.09.05"]
[EventType "team-tourn"]
[EventCountry "HUN"]
[SourceTitle "playchess.com"]
[Source "ChessBase"]
[SourceQuality "1"]
[WhiteTeam "Latvia"]
[BlackTeam "Chile"]
[WhiteTeamCountry "LAT"]
[BlackTeamCountry "CHI"]
[TimeControl "40/5400+30:1800+30"]

1. e4 e5 2. Nf3 Nf6 3. d4 Nxe4 4. Bd3 d5 5. Nxe5 Nd7 6. Nxd7 Bxd7 7. O-O Bd6 8. Nc3 Nxc3 9. bxc3 O-O 10. Qh5 f5 11. Bg5 Qe8 12. Qh4 Qf7 13. Bf4 Qf6 14. Qg3 Bxf4 15. Qxf4 Qc6 16. c4 dxc4 17. d5 Qa4 18. Qxc4 Qxc4 19. Bxc4 Kh8 20. f4 Ba4 21. Bb3 Bd7 22. Rfe1 Rae8 23. Re5 g6 24. Rae1 Kg7 25. Kf2 Kf6 26. g3 h6 27. a4 a5 28. d6 cxd6 29. Rxa5 Rxe1 30. Kxe1 Re8+ 31. Kd2 Bc6 32. Bd5 Rc8 33. Bxc6 Rxc6 34. Rb5 Rc4 35. a5 Ra4 36. Kd3 Ke6 37. Kc3 Ra1 38. Kb2 Ra4 39. Kb3 Ra1 40. Kc3 Ra3+ 41. Kd2 Ra4 42. Rxb7 Rxa5 43. Rh7 h5 44. Rg7 Kf6 45. Rd7 Ke6 46. Rd8 Ra1 47. Re8+ Kf6 48. Re2 Ra3 49. c3 Ra2+ 50. Kd3 Rxe2 51. Kxe2 Ke6 52. Kd3 Kd5 53. c4+ Kc5 54. Kc3 d5 55. cxd5 Kxd5 56. Kd3 Kc5 57. Kc3 Kd5 58. Kd3 Kc5 59. Kc3 1/2-1/2

[Event "45th FIDE Womens Olympiad 2024"]
[Site "Budapest"]
[Date "2024.09.14"]
[Round "4.97"]
[White "Alinasab, Mobina"]
[Black "Lindiawati, Evi"]
[Result "1-0"]
[ECO "B01"]
[WhiteElo "2336"]
[BlackElo "1940"]
[Annotator "ChessBase"]
[PlyCount "65"]
[EventDate "2024.09.05"]
[EventType "team-tourn"]
[EventCountry "HUN"]
[SourceTitle "playchess.com"]
[Source "ChessBase"]
[SourceQuality "1"]
[WhiteTeam "Iran"]
[BlackTeam "Indonesia"]
[WhiteTeamCountry "IRI"]
[BlackTeamCountry "INA"]
[TimeControl "40/5400+30:1800+30"]

1. e4 d5 2. exd5 Qxd5 3. Nc3 Qa5 4. d4 c6 5. Nf3 Nf6 6. Bc4 Bg4 7. h3 Bxf3 8. Qxf3 e6 9. Bd2 Qc7 10. O-O-O Nbd7 11. g4 Nb6 12. Bb3 Bd6 13. Kb1 a5 14. a3 a4 15. Ba2 Nbd5 16. Nxd5 cxd5 17. c4 dxc4 18. Rc1 O-O 19. Bxc4 Qc6 20. Qxc6 bxc6 21. Bd3 Rfc8 22. Rc2 Rab8 23. Ka2 e5 24. Rhc1 exd4 25. Rxc6 Rxc6 26. Rxc6 Bf8 27. Rc4 Nd7 28. Rxd4 Nc5 29. Bc2 Ra8 30. Rc4 f6 31. Bb4 Nd7 32. Bxf8 Kxf8 33. Rxa4 1-0

[Event "45th FIDE Womens Olympiad 2024"]
[Site "Budapest"]
[Date "2024.09.14"]
[Round "4.98"]
[White "Nugroho, Angel Ruth"]
[Black "Karimi, Setayesh"]
[Result "0-1"]
[ECO "A45"]
[WhiteElo "1939"]
[BlackElo "2105"]
[Annotator "NA"]
[PlyCount "106"]
[EventDate "2024.09.05"]
[EventType "team-tourn"]
[EventCountry "HUN"]
[SourceTitle "playchess.com"]
[Source "ChessBase"]
[SourceQuality "1"]
[WhiteTeam "Indonesia"]
[BlackTeam "Iran"]
[WhiteTeamCountry "INA"]
[BlackTeamCountry "IRI"]
[TimeControl "40/5400+30:1800+30"]

1. d4 Nf6 2. Bf4 g6 3. Nc3 d5 4. e3 a6 5. h4 Bg7 6. Bd3 c5 7. Nf3 Bg4 8. Be2 Nc6 9. Ne5 Bxe2 10. Qxe2 Qb6 11. O-O-O Rc8 12. g4 cxd4 13. exd4 Nb4 14. f3 Qa5 15. Kb1 Rxc3 16. bxc3 Nxa2 17. Bd2 Nxc3+ 18. Bxc3 Qxc3 19. Qd3 Qc7 20. h5 O-O 21. hxg6 fxg6 22. Rh3 Qb6+ 23. Kc1 Rc8 24. Qa3 Bf8 25. Rd3 e6 26. Qb3 Qc7 27. Kb2 b5 28. Rc3 Qb7 29. Rxc8 Qxc8 30. Qc3 Qe8 31. Qc7 Qe7 32. Qxe7 Bxe7 33. Nc6 Bd6 34. Rh1 Ne8 35. Re1 Nc7 36. Nd8 Bg3 37. Re2 h5 38. Nxe6 Nxe6 39. Rxe6 Kf7 40. Rxa6 h4 41. Ra1 Kf6 42. Kc3 Kg5 43. Kd2 h3 44. Ke3 h2 45. c3 Kh4 46. f4 Kxg4 47. Rh1 Bxf4+ 48. Kf2 Kh3 49. Ra1 Bg3+ 50. Kf3 g5 51. Rb1 g4+ 52. Ke3 Kg2 53. Rb2+ Kf1 0-1

[Event "45th FIDE Womens Olympiad 2024"]
[Site "Budapest"]
[Date "2024.09.14"]
[Round "4.99"]
[White "Behzad Nazif, Parva"]
[Black "Yuliana, Evi"]
[Result "1/2-1/2"]
[ECO "A64"]
[WhiteElo "2092"]
[BlackElo "1912"]
[Annotator "NA"]
[PlyCount "112"]
[EventDate "2024.09.05"]
[EventType "team-tourn"]
[EventCountry "HUN"]
[SourceTitle "playchess.com"]
[Source "ChessBase"]
[SourceQuality "1"]
[WhiteTeam "Iran"]
[BlackTeam "Indonesia"]
[WhiteTeamCountry "IRI"]
[BlackTeamCountry "INA"]
[TimeControl "40/5400+30:1800+30"]

1. d4 Nf6 2. Nf3 g6 3. c4 Bg7 4. g3 c5 5. d5 O-O 6. Nc3 d6 7. Bg2 e6 8. O-O exd5 9. cxd5 a6 10. a4 Re8 11. Nd2 Nbd7 12. e4 Rb8 13. a5 b5 14. axb6 Nxb6 15. h3 Bd7 16. Re1 Nh5 17. Nb3 Bxc3 18. bxc3 Ba4 19. c4 Qf6 20. Bd2 Nxc4 21. Rxa4 Nb2 22. Qa1 Nxa4 23. Qxa4 Qb2 24. Re3 Rec8 25. Bf1 Rxb3 26. Rxb3 Qxd2 27. Qxa6 Rd8 28. Qb6 Qg5 29. Qc7 Qf6 30. Rb6 Ng7 31. Qxc5 Ne8 32. Qb4 Qe5 33. Bg2 g5 34. Qb2 Qxb2 35. Rxb2 Kg7 36. f4 Kf6 37. Rb6 h6 38. Bf1 Ke7 39. Kf2 Nf6 40. Ke3 Ra8 41. Rb7+ Kf8 42. Rb3 Re8 43. Bd3 Nxd5+ 44. Kd4 Nf6 45. fxg5 hxg5 46. Rb5 Nh7 47. Rf5 Kg7 48. Rd5 Re6 49. Bb5 Nf6 50. Rxg5+ Kh6 51. Rf5 Nxe4 52. g4 Ng5 53. Bd3 Re1 54. Kc3 Rh1 55. Rf6+ Kg7 56. Rxd6 Rxh3 1/2-1/2

[Event "45th FIDE Womens Olympiad 2024"]
[Site "Budapest"]
[Date "2024.09.14"]
[Round "4.100"]
[White "Adeline, Clementia"]
[Black "Hamedi Nia, Vesal"]
[Result "0-1"]
[ECO "D35"]
[WhiteElo "1550"]
[BlackElo "1986"]
[Annotator "NA"]
[PlyCount "118"]
[EventDate "2024.09.05"]
[EventType "team-tourn"]
[EventCountry "HUN"]
[SourceTitle "playchess.com"]
[Source "ChessBase"]
[SourceQuality "1"]
[WhiteTeam "Indonesia"]
[BlackTeam "Iran"]
[WhiteTeamCountry "INA"]
[BlackTeamCountry "IRI"]
[TimeControl "40/5400+30:1800+30"]

1. d4 Nf6 2. c4 e6 3. Nc3 d5 4. cxd5 exd5 5. Bg5 c6 6. e3 Bd6 7. Bd3 O-O 8. Nge2 Re8 9. h3 Nbd7 10. O-O h6 11. Bh4 Nf8 12. Qd2 b5 13. f3 b4 14. Nd1 Ne6 15. Rc1 Bd7 16. Bxf6 Qxf6 17. Ba6 Ng5 18. Nf2 Qxf3 19. gxf3 Nxf3+ 20. Kg2 Nxd2 21. Rfd1 Ne4 22. Bb7 Rad8 23. Bxc6 Nf6 24. Kf3 Re6 25. Bxd7 Nxd7 26. Rd2 Rde8 27. Nd1 Rf6+ 28. Kg2 Rg6+ 29. Kf1 Ree6 30. Rc8+ Kh7 31. Rdc2 Nb6 32. b3 Nxc8 33. Rxc8 Ref6+ 34. Ke1 Bg3+ 35. Kd2 Ra6 36. Rc2 h5 37. Kd3 h4 38. e4 dxe4+ 39. Kxe4 Rae6+ 40. Kd3 Rgf6 41. d5 Rd6 42. Rc5 Ra6 43. Rc2 Ra5 44. Kc4 Bd6 45. Rd2 Rf3 46. Kd4 Rf5 47. Ke4 Re5+ 48. Kf3 Raxd5 49. Rxd5 Rxd5 50. Nf2 f5 51. Nc1 g5 52. Ncd3 Ra5 53. Nd1 Rxa2 54. Ne3 Kg6 55. Nc4 Be7 56. Nde5+ Kf6 57. Nc6 Rh2 58. Nd4 Bc5 59. Ke3 Rxh3+ 0-1

[Event "45th FIDE Womens Olympiad 2024"]
[Site "Budapest"]
[Date "2024.09.14"]
[Round "4.101"]
[White "Tan, Li Ting"]
[Black "Narva, Mai"]
[Result "1/2-1/2"]
[ECO "E24"]
[WhiteElo "2037"]
[BlackElo "2420"]
[Annotator "ChessBase"]
[PlyCount "104"]
[EventDate "2024.09.05"]
[EventType "team-tourn"]
[EventCountry "HUN"]
[SourceTitle "playchess.com"]
[Source "ChessBase"]
[SourceQuality "1"]
[WhiteTeam "Malaysia"]
[BlackTeam "Estonia"]
[WhiteTeamCountry "MAS"]
[BlackTeamCountry "EST"]
[TimeControl "40/5400+30:1800+30"]

1. d4 Nf6 2. c4 e6 3. Nc3 Bb4 4. f3 d5 5. a3 Bxc3+ 6. bxc3 b6 7. Bg5 h6 8. Bh4 Ba6 9. Qa4+ Qd7 10. Qxd7+ Nbxd7 11. cxd5 Nxd5 12. Kd2 e5 13. Nh3 g5 14. Bf2 g4 15. Ng1 f5 16. e4 Bxf1 17. Rxf1 fxe4 18. fxe4 N5f6 19. Kd3 c5 20. Bh4 O-O 21. Bxf6 Nxf6 22. Ne2 cxd4 23. cxd4 exd4 24. Rf4 Nd7 25. Kxd4 Rfd8 26. Rxg4+ Kh7 27. Ke3 Ne5 28. Rg3 Rd3+ 29. Kf4 Ng6+ 30. Kg4 Rd2 31. Nf4 Ne5+ 32. Kf5 Nd7 33. Nd5 Rf8+ 34. Ke6 Nc5+ 35. Ke7 Nxe4 36. Kxf8 Nxg3 37. Nf6+ Kg6 38. hxg3 Kxf6 39. Rxh6+ Kg5 40. Rh7 Rd8+ 41. Ke7 Rd3 42. a4 a5 43. Ke6 Rd4 44. Rh4 Rd2 45. Rh8 Rxg2 46. Rg8+ Kh5 47. Kd5 Ra2 48. Kc6 Rxa4 49. Kxb6 Ra1 50. Ra8 Kg4 51. Rxa5 Rxa5 52. Kxa5 Kxg3 1/2-1/2

[Event "45th FIDE Womens Olympiad 2024"]
[Site "Budapest"]
[Date "2024.09.14"]
[Round "4.102"]
[White "Olde, Margareth"]
[Black "Azhar, Puteri Munajjah Az-Z"]
[Result "1-0"]
[ECO "E15"]
[WhiteElo "2135"]
[BlackElo "2014"]
[Annotator "NA"]
[PlyCount "63"]
[EventDate "2024.09.05"]
[EventType "team-tourn"]
[EventCountry "HUN"]
[SourceTitle "playchess.com"]
[Source "ChessBase"]
[SourceQuality "1"]
[WhiteTeam "Estonia"]
[BlackTeam "Malaysia"]
[WhiteTeamCountry "EST"]
[BlackTeamCountry "MAS"]
[TimeControl "40/5400+30:1800+30"]

1. d4 Nf6 2. c4 e6 3. Nf3 d5 4. g3 Bb4+ 5. Bd2 Be7 6. Bg2 O-O 7. Qc2 c6 8. O-O Nbd7 9. Bf4 b6 10. Rd1 Ba6 11. b3 Rc8 12. Nc3 h6 13. e4 dxc4 14. Nd2 b5 15. bxc4 bxc4 16. h3 g5 17. Be3 Qa5 18. Nf3 Bb4 19. Bd2 Qa3 20. Nb1 Qa5 21. Nc3 Qa3 22. h4 g4 23. Ne5 Bxc3 24. Bxc3 Rfd8 25. Nxd7 Rxd7 26. d5 Qe7 27. d6 Qd8 28. Qd2 Kg7 29. Qf4 Kg6 30. f3 c5 31. fxg4 Bb7 32. h5+ 1-0

[Event "45th FIDE Womens Olympiad 2024"]
[Site "Budapest"]
[Date "2024.09.14"]
[Round "4.103"]
[White "Nithyalakshmi, Sivanesan"]
[Black "Narva, Triin"]
[Result "0-1"]
[ECO "B23"]
[WhiteElo "1912"]
[BlackElo "2066"]
[Annotator "NA"]
[PlyCount "110"]
[EventDate "2024.09.05"]
[EventType "team-tourn"]
[EventCountry "HUN"]
[SourceTitle "playchess.com"]
[Source "ChessBase"]
[SourceQuality "1"]
[WhiteTeam "Malaysia"]
[BlackTeam "Estonia"]
[WhiteTeamCountry "MAS"]
[BlackTeamCountry "EST"]
[TimeControl "40/5400+30:1800+30"]

1. e4 c5 2. Nc3 Nc6 3. Bb5 Nd4 4. Nf3 a6 5. Bd3 g6 6. Nxd4 cxd4 7. Ne2 Bg7 8. O-O d5 9. exd5 Qxd5 10. c3 Bd7 11. Qb3 Qxb3 12. axb3 Bc6 13. Nxd4 Bxd4 14. cxd4 Rd8 15. Bc4 Nh6 16. Ra5 Rxd4 17. d3 Nf5 18. Be3 Rd7 19. Rc5 O-O 20. Bxa6 Bxg2 21. Kxg2 bxa6 22. d4 Rb8 23. Rc3 Rdb7 24. Bf4 Rd8 25. Ra1 f6 26. Rxa6 Rxd4 27. Be3 Rg4+ 28. Kf3 Rg1 29. Rb6 Rd7 30. b4 Rdd1 31. b5 Nh4+ 32. Ke4 Kf7 33. h3 f5+ 34. Ke5 Nf3+ 35. Kf4 Ng5 36. Ke5 Nxh3 37. Bd4 Rg4 38. Rxh3 Re4+ 39. Kd5 Rdxd4+ 40. Kc6 h5 41. Rb8 Rc4+ 42. Kb6 Rc2 43. b3 Rxf2 44. Rc8 Rfe2 45. Rcc3 f4 46. Ka7 Rb4 47. Kb6 Re5 48. Rc5 Re3 49. Rc3 Rbe4 50. Kc5 Rxh3 51. Rxh3 Re3 52. Rh4 g5 53. Rxh5 Kg6 54. Rh8 Rxb3 55. Rg8+ Kf5 0-1

[Event "45th FIDE Womens Olympiad 2024"]
[Site "Budapest"]
[Date "2024.09.14"]
[Round "4.104"]
[White "Olde, Grete"]
[Black "Mohd Tarmizi, Nur Uzma Bazilah"]
[Result "1/2-1/2"]
[ECO "B22"]
[WhiteElo "1952"]
[BlackElo "1756"]
[Annotator "ChessBase"]
[PlyCount "147"]
[EventDate "2024.09.05"]
[EventType "team-tourn"]
[EventCountry "HUN"]
[SourceTitle "playchess.com"]
[Source "ChessBase"]
[SourceQuality "1"]
[WhiteTeam "Estonia"]
[BlackTeam "Malaysia"]
[WhiteTeamCountry "EST"]
[BlackTeamCountry "MAS"]
[TimeControl "40/5400+30:1800+30"]

1. e4 c5 2. c3 Nf6 3. e5 Nd5 4. d4 cxd4 5. Nf3 d6 6. cxd4 Nc6 7. Bc4 Nb6 8. Bb5 Bd7 9. Nc3 e6 10. O-O a6 11. Bd3 d5 12. Be3 Be7 13. Bb1 Nc4 14. Bc1 b5 15. h3 Qb6 16. Ne2 f6 17. b3 N4a5 18. exf6 gxf6 19. Nf4 O-O-O 20. Re1 Rde8 21. Nh5 Reg8 22. Be3 Qc7 23. Kh1 Be8 24. Nf4 Qd7 25. Bd2 Bf7 26. a4 b4 27. Bd3 Kb7 28. Rb1 Bd6 29. Qe2 e5 30. dxe5 fxe5 31. Bxa6+ Ka8 32. Bb5 exf4 33. Rec1 Qb7 34. Bxc6 Nxc6 35. a5 Re8 36. Qf1 Na7 37. Nd4 Be5 38. Nf3 Bd6 39. Nd4 Rc8 40. Re1 Rhe8 41. Red1 Bg6 42. Rbc1 Be5 43. Nf3 Bd6 44. Nd4 Bc5 45. Bxf4 Bxd4 46. Rxd4 Rxc1 47. Qxc1 Nc6 48. Rxd5 Be4 49. a6 Qc8 50. Rg5 Qxh3+ 51. Kg1 Qxb3 52. Qc5 Qd1+ 53. Kh2 Qd4 54. Qb5 Qd7 55. f3 Bd3 56. Qc5 Bxa6 57. Rg7 Re7 58. Rg8+ Kb7 59. Rg4 Qd4 60. Qxd4 Nxd4 61. Bd6 Nxf3+ 62. gxf3 Re2+ 63. Kg3 b3 64. Rb4+ Kc6 65. Rxb3 Kxd6 66. Rb6+ Ke5 67. Rxa6 Kf5 68. Rh6 Re7 69. Rh5+ Kg6 70. Kg4 Rb7 71. f4 Rb1 72. Rg5+ Kf6 73. Rf5+ Kg6 74. Rg5+ 1/2-1/2

[Event "45th FIDE Womens Olympiad 2024"]
[Site "Budapest"]
[Date "2024.09.14"]
[Round "4.105"]
[White "Cori T., Deysi"]
[Black "Nassr, Lina"]
[Result "1-0"]
[ECO "A14"]
[WhiteElo "2366"]
[BlackElo "2010"]
[Annotator "ChessBase"]
[PlyCount "95"]
[EventDate "2024.09.05"]
[EventType "team-tourn"]
[EventCountry "HUN"]
[SourceTitle "playchess.com"]
[Source "ChessBase"]
[SourceQuality "1"]
[WhiteTeam "Peru"]
[BlackTeam "Algeria"]
[WhiteTeamCountry "PER"]
[BlackTeamCountry "ALG"]
[TimeControl "40/5400+30:1800+30"]

1. Nf3 d5 2. g3 Nf6 3. Bg2 e6 4. O-O Be7 5. c4 O-O 6. b3 c5 7. Bb2 Nc6 8. cxd5 Nxd5 9. Nc3 b6 10. d4 Bb7 11. dxc5 Nxc3 12. Bxc3 Bxc5 13. Qc1 Qe7 14. a3 a5 15. Qb2 f6 16. Nd2 Rfd8 17. e3 b5 18. Ne4 b4 19. axb4 axb4 20. Bxf6 gxf6 21. Rac1 Bd6 22. Nxf6+ Kf7 23. Ng4 Qg5 24. Qe2 h5 25. Bxc6 Bxc6 26. Nh6+ Qxh6 27. Rxc6 Rac8 28. Qf3+ Kg8 29. Rd1 Rxc6 30. Qxc6 e5 31. Qc4+ Kf8 32. Rd5 Qf6 33. Qe4 Kg7 34. Kg2 Rf8 35. f4 Re8 36. Qd3 e4 37. Qb5 Rb8 38. Qd7+ Be7 39. Re5 Kf7 40. Rf5 Rd8 41. Rxf6+ Kxf6 42. Qc6+ Kf7 43. Qxe4 Rd2+ 44. Kh3 Rb2 45. Qh7+ Ke6 46. Qxh5 Rd2 47. e4 Bf6 48. Qf5+ 1-0